fUSD/lending_fUSD_20241210
["ID","MTS","AMOUNT","RATE_DAILY","PERIOD"]
[344816078,1733803831784,-26117.26698941,7e-05,2]
[344816079,1733803831793,-5413.0,7.07e-05,2]
[344816080,1733803831803,-5410.0,7.07e-05,2]
[344816081,1733803831811,-5410.0,7.07e-05,2]
[344816082,1733803831821,-5410.0,7.07e-05,2]
[344816083,1733803831831,-5410.0,7.07e-05,2]
[344816084,1733803831840,-5410.0,7.07e-05,2]
[344816085,1733803831849,-150.0,7.999e-05,2]
[344816086,1733803832060,-2079.71645924,8e-05,2]
[344816087,1733803832074,-32545.11161645,8e-05,2]
[344816088,1733803832086,-1903.25216808,8e-05,2]
[344816089,1733803832098,-1709.08,8e-05,2]
[344816090,1733803832119,-6655.16449173,8e-05,2]
[344816091,1733803832130,-478.31588386,8e-05,2]
[344816092,1733803832154,-592.36206145,8e-05,2]
[344816093,1733803832166,-604.63446976,8e-05,2]
[344816097,1733803837735,-918.803945,8e-05,2]
[344816098,1733803837787,-1984.29881371,8e-05,2]
[344816099,1733803837842,-529.26009072,8e-05,2]
[344816100,1733803837851,-7596.23979294,8e-05,2]
[344816101,1733803837915,-13116.99231973,8e-05,2]
[344816102,1733803837951,-2896.39516468,8e-05,2]
[344816103,1733803837962,-18936.06547736,8e-05,2]
[344816104,1733803837973,-902.63081299,8e-05,2]
[344816105,1733803837986,-6551.6764323,8e-05,2]
[344816106,1733803837995,-150.0,8.421e-05,2]
[344816107,1733803838005,-722.52,9.563e-05,2]
[344816108,1733803838015,-23900.0,9.686e-05,2]
[344816109,1733803838024,-250.0,9.792e-05,2]
[344816110,1733803838033,-250.0,9.957e-05,2]
[344816111,1733803838043,-4595.8035677,0.0001,2]
[344816112,1733803838110,-45404.1964323,0.0001,2]
[344816113,1733803838120,-44000.0,0.0001,2]
[344816114,1733803838129,-150.0,0.00010018,2]
[344816115,1733803838139,-1012.8,0.00010032,2]
[344816116,1733803838148,-1006.69,0.00010053,2]
[344816117,1733803838158,-994.43,0.00010081,2]
[344816119,1733803838167,-2000.0,0.00010104,2]
[344816121,1733803838176,-200.6,0.00010128,2]
[344816123,1733803838186,-201.43,0.00010183,2]
[344816125,1733803838195,-477.5341,0.00010183,2]
[344816127,1733803838204,-1002.64,0.00010219,2]
[344816129,1733803838213,-999.45,0.00010236,2]
[344816131,1733803838222,-994.28,0.00010297,2]
[344816133,1733803838234,-1000.0,0.00010335,2]
[344816134,1733803838243,-1007.32,0.00010366,2]
[344816137,1733803838253,-200.0,0.00010439,2]
[344816139,1733803838262,-1000.27,0.00010446,2]
[344816140,1733803838271,-150.99,0.00010475,2]
[344816142,1733803838281,-23155.46,0.00010475,2]
[344816144,1733803838290,-299.99,0.00010475,2]
[344816146,1733803838299,-339.69,0.00010475,2]
[344816147,1733803838308,-1517.62,0.00010475,2]
[344816149,1733803838318,-9999.99,0.00010475,2]
[344816151,1733803838327,-1001.63,0.00010538,2]
[344816152,1733803838336,-472.045,0.0001055,2]
[344816153,1733803838346,-1047.13,0.00010584,2]
[344816154,1733803838355,-655.58,0.00010596,2]
[344816155,1733803838364,-1013.94,0.00010643,2]
[344816156,1733803838374,-150.0,0.00010679,2]
[344816157,1733803838383,-722.52,0.00010758,2]
[344816158,1733803838392,-988.69,0.00010766,2]
[344816159,1733803838401,-999.43,0.00010907,2]
[344816160,1733803838410,-156.641536,0.00010958,2]
[344816161,1733803838419,-500.0,0.00010958,2]
[344816162,1733803838428,-7500.0,0.00010958,2]
[344816163,1733803838438,-500.0,0.00010958,2]
[344816164,1733803838447,-503.68,0.00010958,2]
[344816165,1733803838456,-3000.0,0.0001099,2]
[344816166,1733803838465,-6280.2681,0.00010997,2]
[344816167,1733803838474,-1476.0,0.00011,2]
[344816168,1733803838486,-997.0,0.00011068,2]
[344816169,1733803838495,-31607.0,0.00011068,2]
[344816170,1733803838504,-500.0,0.00011073,2]
[344816171,1733803838513,-1012.6,0.00011097,2]
[344816172,1733803838523,-500.0,0.00011097,2]
[344816173,1733803838532,-500.0,0.00011097,2]
[344816174,1733803838541,-500.0,0.00011097,2]
[344816175,1733803838550,-500.0,0.00011097,2]
[344816176,1733803838559,-514.12921966,0.00011097,2]
[344816177,1733803838568,-500.0,0.00011097,2]
[344816178,1733803838577,-500.0,0.00011097,2]
[344816179,1733803838586,-500.0,0.00011097,2]
[344816180,1733803838595,-500.0,0.00011097,2]
[344816181,1733803838605,-500.0,0.00011097,2]
[344816182,1733803838617,-500.0,0.00011097,2]
[344816183,1733803838627,-500.0,0.00011097,2]
[344816184,1733803838636,-500.0,0.00011097,2]
[344816185,1733803838645,-500.0,0.00011097,2]
[344816186,1733803838655,-500.0,0.00011097,2]
[344816187,1733803838664,-225.12042135,0.00011097,2]
[344816188,1733803838673,-500.0,0.00011098,2]
[344816189,1733803838683,-500.54582489,0.00011098,2]
[344816190,1733803838692,-500.0,0.00011098,2]
[344816191,1733803838703,-427.21966521,0.00011098,2]
[344816192,1733803838711,-500.0,0.00011098,2]
[344816193,1733803838721,-500.0,0.00011098,2]
[344816194,1733803838730,-500.0,0.00011098,2]
[344816195,1733803838742,-500.0,0.00011098,2]
[344816196,1733803838751,-590.3,0.00011098,2]
[344816197,1733803838760,-500.0,0.00011098,2]
[344816198,1733803838770,-500.0,0.00011098,2]
[344816199,1733803838779,-518.27554984,0.00011098,2]
[344816200,1733803838788,-500.0,0.00011098,2]
[344816201,1733803838797,-362.09842254,0.00011098,2]
[344816202,1733803838807,-500.0,0.00011098,2]
[344816203,1733803838817,-500.0,0.00011098,2]
[344816204,1733803838826,-500.0,0.00011098,2]
[344816205,1733803838839,-500.0,0.00011098,2]
[344816206,1733803838848,-500.0,0.00011098,2]
[344816207,1733803838858,-341.53495384,0.00011098,2]
[344816208,1733803838867,-500.0,0.00011098,2]
[344816209,1733803838876,-500.0,0.00011098,2]
[344816210,1733803838885,-500.0,0.00011098,2]
[344816211,1733803838895,-500.0,0.00011098,2]
[344816212,1733803838904,-500.0,0.00011098,2]
[344816213,1733803838913,-500.0,0.00011098,2]
[344816214,1733803838923,-500.0,0.00011098,2]
[344816215,1733803838932,-534.18926019,0.00011098,2]
[344816216,1733803838941,-502.8,0.00011098,2]
[344816217,1733803838950,-561.38876662,0.00011098,2]
[344816218,1733803838960,-592.16913042,0.00011098,2]
[344816219,1733803838969,-500.0,0.00011098,2]
[344816220,1733803838978,-500.0,0.00011098,2]
[344816221,1733803838991,-300.0,0.00011098,2]
[344816222,1733803839000,-300.0,0.00011098,2]
[344816223,1733803839009,-300.0,0.00011098,2]
[344816224,1733803839018,-300.0,0.00011098,2]
[344816225,1733803839028,-300.0,0.00011098,3]
[344816226,1733803839038,-300.0,0.00011098,3]
[344816227,1733803839047,-300.0,0.00011098,3]
[344816228,1733803839056,-300.0,0.00011098,3]
[344816229,1733803839065,-532.62081251,0.00011098,2]
[344816230,1733803839074,-702.12,0.00011098,2]
[344816231,1733803839083,-555.82284254,0.00011098,2]
[344816232,1733803839092,-500.0,0.00011098,2]
[344816233,1733803839102,-500.0,0.00011098,2]
[344816234,1733803839112,-540.10844021,0.00011098,2]
[344816235,1733803839121,-882.81,0.00011098,2]
[344816236,1733803839130,-500.0,0.00011098,2]
[344816237,1733803839139,-712.14,0.00011098,2]
[344816238,1733803839148,-4589.19,0.00011098,2]
[344816239,1733803839157,-500.0,0.00011098,2]
[344816240,1733803839166,-880.96,0.00011098,2]
[344816241,1733803839175,-500.0,0.00011098,2]
[344816242,1733803839184,-500.0,0.00011098,2]
[344816243,1733803839193,-500.0,0.00011098,2]
[344816244,1733803839202,-500.0,0.00011098,2]
[344816245,1733803839212,-500.0,0.00011098,2]
[344816246,1733803839222,-160.81681675,0.00011098,2]
[344816247,1733803839231,-500.0,0.00011098,2]
[344816248,1733803839242,-500.0,0.00011098,2]
[344816249,1733803839251,-748.86,0.00011098,2]
[344816250,1733803839261,-500.0,0.00011098,2]
[344816251,1733803839270,-608.96,0.00011098,2]
[344816252,1733803839279,-500.0,0.00011098,2]
[344816253,1733803839288,-500.0,0.00011098,2]
[344816254,1733803839297,-500.0,0.00011098,2]
[344816255,1733803839308,-2111.47,0.00011098,2]
[344816256,1733803839317,-500.0,0.00011098,2]
[344816257,1733803839326,-500.0,0.00011098,2]
[344816258,1733803839335,-500.0,0.00011098,2]
[344816259,1733803839344,-2972.05,0.00011098,2]
[344816260,1733803839353,-1000.0,0.00011098,2]
[344816261,1733803839363,-500.0,0.00011098,2]
[344816262,1733803839372,-500.0,0.00011098,2]
[344816263,1733803839382,-500.0,0.00011098,2]
[344816264,1733803839392,-539.60412043,0.00011098,2]
[344816265,1733803839405,-500.0,0.00011098,2]
[344816266,1733803839415,-500.0,0.00011098,2]
[344816267,1733803839424,-1463.08,0.00011098,2]
[344816268,1733803839434,-525.81075172,0.00011098,2]
[344816269,1733803839443,-523.58154186,0.00011098,2]
[344816270,1733803839452,-501.09137895,0.00011098,2]
[344816271,1733803839462,-500.0,0.00011098,2]
[344816272,1733803839471,-500.0,0.00011098,2]
[344816273,1733803839480,-500.0,0.00011098,2]
[344816274,1733803839494,-940.9,0.00011098,2]
[344816275,1733803839503,-500.0,0.00011098,2]
[344816276,1733803839512,-1211.89,0.00011098,2]
[344816277,1733803839522,-500.0,0.00011098,2]
[344816278,1733803839531,-500.0,0.00011098,2]
[344816279,1733803839540,-500.0,0.00011098,2]
[344816280,1733803839549,-959.12,0.00011098,2]
[344816282,1733803839558,-500.0,0.00011098,2]
[344816283,1733803839567,-1399.71,0.00011098,2]
[344816285,1733803839577,-500.0,0.00011098,2]
[344816287,1733803839587,-500.0,0.00011098,2]
[344816289,1733803839596,-500.0,0.00011098,2]
[344816290,1733803839607,-500.0,0.00011098,2]
[344816291,1733803839617,-500.0,0.00011098,2]
[344816292,1733803839627,-786.17,0.00011098,2]
[344816293,1733803839636,-7500.0,0.00011098,2]
[344816294,1733803839647,-7500.0,0.00011098,2]
[344816295,1733803839656,-1632.7,0.00011098,2]
[344816296,1733803839665,-500.0,0.00011098,2]
[344816297,1733803839675,-500.0,0.00011098,2]
[344816298,1733803839686,-500.0,0.00011098,2]
[344816299,1733803839695,-605.97,0.00011098,2]
[344816300,1733803839705,-500.0,0.00011098,2]
[344816301,1733803839714,-500.0,0.00011098,2]
[344816302,1733803839723,-500.0,0.00011098,2]
[344816303,1733803839735,-285.931336,0.00011098,2]
[344816304,1733803839745,-184.58506005,0.00011098,2]
[344816305,1733803839755,-502.00560153,0.00011098,2]
[344816306,1733803839764,-500.0,0.00011098,2]
[344816307,1733803839774,-220.29203725,0.00011098,2]
[344816308,1733803839783,-1737.47,0.00011098,2]
[344816309,1733803839792,-500.0,0.00011098,2]
[344816310,1733803839801,-500.0,0.00011098,2]
[344816311,1733803839811,-500.0,0.00011098,2]
[344816312,1733803839820,-187.98219335,0.00011098,2]
[344816313,1733803839829,-500.0,0.00011098,2]
[344816314,1733803839838,-239.13585771,0.00011098,2]
[344816315,1733803839847,-500.0,0.00011098,2]
[344816316,1733803839857,-383.80926031,0.00011098,2]
[344816317,1733803839866,-500.0,0.00011098,2]
[344816318,1733803839875,-500.0,0.00011098,2]
[344816319,1733803839885,-500.0,0.00011098,2]
[344816320,1733803839894,-500.0,0.00011098,2]
[344816321,1733803839903,-500.0,0.00011098,2]
[344816322,1733803839912,-500.0,0.00011098,2]
[344816323,1733803839922,-500.0,0.00011098,2]
[344816324,1733803839931,-500.0,0.00011098,2]
[344816325,1733803839940,-500.0,0.00011098,2]
[344816326,1733803839949,-500.0,0.00011098,2]
[344816327,1733803839958,-500.0,0.00011098,2]
[344816328,1733803839967,-301.85576519,0.00011098,2]
[344816329,1733803839976,-500.0,0.00011098,2]
[344816330,1733803839989,-500.0,0.00011099,2]
[344816331,1733803839998,-503.35615896,0.00011099,2]
[344816332,1733803840007,-2170.872,0.00011099,2]
[344816333,1733803840017,-181.63314877,0.00011099,2]
[344816334,1733803840026,-500.0,0.00011099,2]
[344816335,1733803840035,-500.0,0.00011099,2]
[344816336,1733803840044,-500.0,0.00011099,2]
[344816337,1733803840054,-500.0,0.00011099,2]
[344816338,1733803840063,-500.0,0.00011099,2]
[344816339,1733803840072,-500.0,0.00011099,2]
[344816340,1733803840082,-500.0,0.00011099,2]
[344816341,1733803840091,-500.0,0.00011099,2]
[344816342,1733803840100,-500.0,0.00011099,2]
[344816343,1733803840109,-500.0,0.00011099,2]
[344816344,1733803840119,-184.52862254,0.00011099,2]
[344816345,1733803840128,-500.0,0.00011099,2]
[344816346,1733803840137,-500.0,0.00011099,2]
[344816347,1733803840147,-500.0,0.00011099,2]
[344816348,1733803840156,-500.0,0.00011099,2]
[344816349,1733803840166,-500.0,0.00011099,2]
[344816350,1733803840175,-500.0,0.00011099,2]
[344816351,1733803840184,-500.0,0.00011099,2]
[344816352,1733803840193,-500.0,0.00011099,2]
[344816353,1733803840203,-500.0,0.00011099,2]
[344816354,1733803840212,-500.0,0.00011099,2]
[344816355,1733803840222,-500.0,0.00011099,2]
[344816356,1733803840231,-500.0,0.00011099,2]
[344816357,1733803840252,-574.51438324,0.00011099,2]
[344816358,1733803840262,-590.3,0.00011099,2]
[344816359,1733803840271,-590.3,0.00011099,2]
[344816360,1733803840281,-590.3,0.00011099,2]
[344816361,1733803840290,-590.3,0.00011099,2]
[344816362,1733803840299,-590.3,0.00011099,2]
[344816363,1733803840309,-590.3,0.00011099,2]
[344816364,1733803840490,-590.3,0.00011099,2]
[344816365,1733803840500,-590.3,0.00011099,2]
[344816366,1733803840509,-590.3,0.00011099,2]
[344816367,1733803840519,-590.3,0.00011099,2]
[344816368,1733803840528,-590.3,0.00011099,2]
[344816369,1733803840537,-590.3,0.00011099,2]
[344816370,1733803840546,-590.3,0.00011099,2]
[344816371,1733803840555,-590.3,0.00011099,2]
[344816372,1733803840564,-590.3,0.00011099,2]
[344816373,1733803840573,-590.3,0.00011099,2]
[344816374,1733803840582,-590.3,0.00011099,2]
[344816375,1733803840591,-590.3,0.00011099,2]
[344816376,1733803840601,-590.3,0.00011099,2]
[344816377,1733803840611,-590.3,0.00011099,2]
[344816378,1733803840621,-590.3,0.00011099,2]
[344816379,1733803840631,-590.3,0.00011099,2]
[344816380,1733803840640,-590.49861485,0.00011099,2]
[344816381,1733803840651,-500.0,0.00011099,2]
[344816382,1733803840660,-202.01707812,0.00011099,2]
[344816383,1733803840669,-500.0,0.00011099,2]
[344816384,1733803840678,-500.0,0.00011099,2]
[344816385,1733803840689,-500.0,0.00011099,2]
[344816386,1733803840699,-500.0,0.00011099,2]
[344816387,1733803840708,-500.0,0.00011099,2]
[344816388,1733803840717,-500.0,0.00011099,2]
[344816389,1733803840727,-500.0,0.00011099,2]
[344816390,1733803840737,-500.0,0.00011099,2]
[344816391,1733803840746,-500.0,0.00011099,2]
[344816392,1733803840755,-500.0,0.00011099,2]
[344816393,1733803840764,-500.0,0.00011099,2]
[344816394,1733803840773,-500.0,0.00011099,2]
[344816395,1733803840783,-500.0,0.00011099,2]
[344816396,1733803840792,-500.0,0.00011099,2]
[344816397,1733803840801,-227.64,0.00011099,2]
[344816398,1733803840810,-500.0,0.00011099,2]
[344816399,1733803840820,-500.0,0.00011099,2]
[344816400,1733803840829,-500.0,0.00011099,2]
[344816401,1733803840839,-500.0,0.00011099,2]
[344816402,1733803840848,-500.0,0.00011099,2]
[344816403,1733803840857,-500.0,0.00011099,2]
[344816404,1733803840867,-500.0,0.00011099,2]
[344816405,1733803840876,-500.0,0.00011099,2]
[344816406,1733803840885,-636.69970121,0.00011099,2]
[344816407,1733803840895,-500.0,0.00011099,2]
[344816408,1733803840904,-592.1872736,0.00011099,2]
[344816409,1733803840913,-500.0,0.00011099,2]
[344816410,1733803840922,-500.0,0.00011099,2]
[344816411,1733803840931,-500.0,0.00011099,2]
[344816412,1733803840940,-485.95077408,0.00011099,2]
[344816413,1733803840950,-500.0,0.00011099,2]
[344816414,1733803840959,-500.0,0.00011099,2]
[344816415,1733803840968,-500.0,0.00011099,2]
[344816416,1733803840977,-561.21407887,0.00011099,2]
[344816417,1733803840991,-501.05163002,0.00011099,2]
[344816418,1733803841001,-500.63143489,0.00011099,2]
[344816419,1733803841010,-500.0,0.00011099,2]
[344816420,1733803841020,-499.45584922,0.00011099,2]
[344816421,1733803841029,-500.0,0.00011099,2]
[344816422,1733803841038,-500.0,0.00011099,2]
[344816423,1733803841048,-500.0,0.00011099,2]
[344816424,1733803841057,-500.0,0.00011099,2]
[344816425,1733803841067,-500.0,0.00011099,2]
[344816426,1733803841076,-530.99126296,0.00011099,2]
[344816427,1733803841086,-500.0,0.00011099,2]
[344816428,1733803841095,-500.0,0.00011099,2]
[344816429,1733803841104,-500.0,0.00011099,2]
[344816430,1733803841114,-500.0,0.00011099,2]
[344816431,1733803841123,-500.0,0.00011099,2]
[344816432,1733803841132,-500.0,0.00011099,2]
[344816433,1733803841142,-500.0,0.00011099,2]
[344816434,1733803841151,-500.0,0.00011099,2]
[344816435,1733803841160,-410.18841815,0.00011099,2]
[344816436,1733803841170,-522.08145247,0.00011099,2]
[344816437,1733803841179,-502.8,0.00011099,2]
[344816438,1733803841188,-502.8,0.00011099,2]
[344816439,1733803841197,-502.8,0.00011099,2]
[344816440,1733803841206,-502.8,0.00011099,2]
[344816441,1733803841215,-502.8,0.00011099,2]
[344816442,1733803841225,-502.8,0.00011099,2]
[344816443,1733803841237,-502.8,0.00011099,2]
[344816444,1733803841246,-502.8,0.00011099,2]
[344816445,1733803841255,-502.8,0.00011099,2]
[344816446,1733803841264,-502.8,0.00011099,2]
[344816447,1733803841274,-502.8,0.00011099,2]
[344816448,1733803841283,-502.8,0.00011099,2]
[344816449,1733803841292,-502.8,0.00011099,2]
[344816450,1733803841301,-502.8,0.00011099,2]
[344816451,1733803841311,-502.8,0.00011099,2]
[344816452,1733803841321,-502.8,0.00011099,2]
[344816453,1733803841331,-502.8,0.00011099,2]
[344816454,1733803841340,-502.8,0.00011099,2]
[344816455,1733803841349,-502.8,0.00011099,2]
[344816456,1733803841359,-502.8,0.00011099,2]
[344816457,1733803841368,-502.8,0.00011099,2]
[344816458,1733803841377,-502.8,0.00011099,2]
[344816459,1733803841387,-502.90663915,0.00011099,2]
[344816460,1733803841396,-8601.9842628,0.00011099,2]
[344816461,1733803841405,-171.12207861,0.00011099,2]
[344816462,1733803841415,-500.0,0.00011099,2]
[344816463,1733803841424,-500.0,0.00011099,2]
[344816464,1733803841433,-500.0,0.00011099,2]
[344816465,1733803841442,-500.0,0.00011099,2]
[344816466,1733803841452,-565.96,0.00011099,2]
[344816467,1733803841463,-702.12,0.00011099,2]
[344816468,1733803841472,-702.12,0.00011099,2]
[344816469,1733803841481,-702.12,0.00011099,2]
[344816470,1733803841494,-702.12,0.00011099,2]
[344816471,1733803841503,-702.12,0.00011099,2]
[344816472,1733803841512,-702.12,0.00011099,2]
[344816473,1733803841522,-702.12,0.00011099,2]
[344816474,1733803841531,-702.12,0.00011099,2]
[344816475,1733803841540,-702.12,0.00011099,2]
[344816476,1733803841550,-702.12,0.00011099,2]
[344816477,1733803841559,-702.12,0.00011099,2]
[344816478,1733803841568,-702.12,0.00011099,2]
[344816479,1733803841577,-702.12,0.00011099,2]
[344816480,1733803841587,-702.12,0.00011099,2]
[344816481,1733803841596,-702.12,0.00011099,2]
[344816482,1733803841607,-702.12,0.00011099,2]
[344816483,1733803841617,-702.12,0.00011099,2]
[344816484,1733803841626,-702.12,0.00011099,2]
[344816485,1733803841636,-702.12,0.00011099,2]
[344816486,1733803841646,-702.12,0.00011099,2]
[344816487,1733803841656,-702.12,0.00011099,2]
[344816488,1733803841665,-702.12,0.00011099,2]
[344816489,1733803841674,-702.3553403,0.00011099,2]
[344816490,1733803841683,-300.0,0.00011099,3]
[344816491,1733803841694,-300.0,0.00011099,3]
[344816492,1733803841703,-300.0,0.00011099,3]
[344816493,1733803841713,-300.0,0.00011099,3]
[344816494,1733803841723,-500.0,0.00011099,2]
[344816495,1733803841735,-300.0,0.00011099,3]
[344816496,1733803841745,-500.0,0.00011099,2]
[344816497,1733803841755,-300.0,0.00011099,3]
[344816498,1733803841765,-500.0,0.00011099,2]
[344816499,1733803841775,-300.0,0.00011099,3]
[344816500,1733803841784,-500.0,0.00011099,2]
[344816501,1733803841794,-300.0,0.00011099,3]
[344816502,1733803841803,-500.0,0.00011099,2]
[344816503,1733803841812,-300.0,0.00011099,3]
[344816504,1733803841823,-500.0,0.00011099,2]
[344816505,1733803841833,-300.0,0.00011099,3]
[344816506,1733803841842,-500.0,0.00011099,2]
[344816507,1733803841851,-500.0,0.00011099,2]
[344816508,1733803841860,-500.0,0.00011099,2]
[344816509,1733803841870,-500.0,0.00011099,2]
[344816510,1733803841880,-500.0,0.00011099,2]
[344816511,1733803841889,-500.0,0.00011099,2]
[344816512,1733803841899,-300.0,0.00011099,2]
[344816513,1733803841908,-500.0,0.00011099,2]
[344816514,1733803841917,-300.0,0.00011099,2]
[344816515,1733803841927,-500.0,0.00011099,2]
[344816516,1733803841936,-300.0,0.00011099,2]
[344816517,1733803841945,-248.92133464,0.00011099,2]
[344816518,1733803841955,-300.0,0.00011099,2]
[344816519,1733803841964,-300.0,0.00011099,2]
[344816520,1733803841973,-300.0,0.00011099,2]
[344816521,1733803841984,-300.0,0.00011099,2]
[344816522,1733803841993,-300.0,0.00011099,2]
[344816523,1733803842002,-300.0,0.00011099,2]
[344816524,1733803842012,-300.0,0.00011099,2]
[344816525,1733803842022,-500.0,0.00011099,2]
[344816526,1733803842031,-500.0,0.00011099,2]
[344816527,1733803842041,-500.0,0.00011099,2]
[344816528,1733803842051,-500.0,0.00011099,2]
[344816529,1733803842060,-500.0,0.00011099,2]
[344816530,1733803842070,-500.0,0.00011099,2]
[344816531,1733803842079,-500.0,0.00011099,2]
[344816532,1733803842089,-882.81,0.00011099,2]
[344816533,1733803842098,-882.81,0.00011099,2]
[344816534,1733803842107,-882.81,0.00011099,2]
[344816535,1733803842116,-500.0,0.00011099,2]
[344816536,1733803842125,-882.81,0.00011099,2]
[344816537,1733803842135,-500.0,0.00011099,2]
[344816538,1733803842144,-882.81,0.00011099,2]
[344816539,1733803842153,-500.0,0.00011099,2]
[344816540,1733803842163,-882.81,0.00011099,2]
[344816541,1733803842171,-500.0,0.00011099,2]
[344816542,1733803842181,-882.81,0.00011099,2]
[344816543,1733803842191,-500.0,0.00011099,2]
[344816544,1733803842200,-500.0,0.00011099,2]
[344816545,1733803842210,-882.81,0.00011099,2]
[344816546,1733803842219,-500.0,0.00011099,2]
[344816547,1733803842229,-882.81,0.00011099,2]
[344816548,1733803842246,-500.0,0.00011099,2]
[344816549,1733803842256,-882.81,0.00011099,2]
[344816550,1733803842265,-882.81,0.00011099,2]
[344816551,1733803842275,-712.14,0.00011099,2]
[344816552,1733803842284,-500.0,0.00011099,2]
[344816553,1733803842293,-882.81,0.00011099,2]
[344816554,1733803842302,-712.14,0.00011099,2]
[344816555,1733803842312,-500.0,0.00011099,2]
[344816556,1733803842321,-882.81,0.00011099,2]
[344816557,1733803842330,-712.14,0.00011099,2]
[344816558,1733803842340,-500.0,0.00011099,2]
[344816559,1733803842349,-882.81,0.00011099,2]
[344816560,1733803842358,-712.14,0.00011099,2]
[344816561,1733803842368,-882.81,0.00011099,2]
[344816562,1733803842376,-712.14,0.00011099,2]
[344816563,1733803842385,-500.0,0.00011099,2]
[344816564,1733803842394,-882.81,0.00011099,2]
[344816565,1733803842403,-712.14,0.00011099,2]
[344816566,1733803842412,-500.0,0.00011099,2]
[344816567,1733803842421,-882.81,0.00011099,2]
[344816568,1733803842431,-712.14,0.00011099,2]
[344816569,1733803842440,-882.81,0.00011099,2]
[344816570,1733803842449,-712.14,0.00011099,2]
[344816571,1733803842458,-882.81,0.00011099,2]
[344816572,1733803842468,-712.14,0.00011099,2]
[344816573,1733803842477,-882.81,0.00011099,2]
[344816574,1733803842489,-712.14,0.00011099,2]
[344816575,1733803842499,-882.81,0.00011099,2]
[344816576,1733803842509,-712.14,0.00011099,2]
[344816577,1733803842518,-882.81,0.00011099,2]
[344816578,1733803842528,-712.14,0.00011099,2]
[344816579,1733803842537,-712.14,0.00011099,2]
[344816580,1733803842547,-882.97,0.00011099,2]
[344816581,1733803842556,-712.14,0.00011099,2]
[344816582,1733803842566,-712.14,0.00011099,2]
[344816584,1733803842576,-4589.19,0.00011099,2]
[344816585,1733803842585,-712.14,0.00011099,2]
[344816586,1733803842595,-4589.19,0.00011099,2]
[344816587,1733803842607,-712.14,0.00011099,2]
[344816588,1733803842616,-4589.19,0.00011099,2]
[344816589,1733803842627,-4589.19,0.00011099,2]
[344816590,1733803842637,-712.14,0.00011099,2]
[344816591,1733803842647,-4589.19,0.00011099,2]
[344816592,1733803842657,-712.14,0.00011099,2]
[344816593,1733803842666,-4589.19,0.00011099,2]
[344816595,1733803842676,-712.14,0.00011099,2]
[344816596,1733803842687,-4589.19,0.00011099,2]
[344816598,1733803842697,-712.14,0.00011099,2]
[344816600,1733803842707,-4589.19,0.00011099,2]
[344816602,1733803842716,-712.14,0.00011099,2]
[344816603,1733803842726,-4589.19,0.00011099,2]
[344816605,1733803842738,-712.35070023,0.00011099,2]
[344816606,1733803842748,-4589.19,0.00011099,2]